[Event "GER-ch Youth-U10 2022"]
[Site "Willingen"]
[Date "2022.06.07"]
[Round "5.22"]
[White "Wang, Kaiwen"]
[Black "Yao, Haiyang"]
[Result "0-1"]
[ECO "C47"]
[WhiteElo "1151"]
[BlackElo "1098"]
[Annotator "NA RC COMBH"]
[PlyCount "126"]
[EventDate "2022.06.05"]
[EventType "swiss"]
[EventRounds "11"]
[EventCountry "GER"]
[SourceTitle "playchess.com"]
[Source "ChessBase"]
[SourceQuality "1"]
[TimeControl "40/4500+30:900+30"]

1. e4 {[%emt 0:00:03]} e5 {[%emt 0:00:07]} 2. Nf3 {[%emt 0:00:05]} Nc6 {[%emt 0:00:06]} 3. Nc3 {[%emt 0:00:06]} Nf6 {[%emt 0:00:05]} 4. d4 {[%emt 0:00:04]} exd4 {[%emt 0:00:09]} 5. Nxd4 {[%emt 0:00:06]} Bb4 {[%emt 0:00:09]} 6. Nxc6 {[%emt 0:00:08]} bxc6 {[%emt 0:00:14]} 7. Bd3 {[%emt 0:00:11]} O-O {[%emt 0:00:26]} 8. O-O {[%emt 0:00:11]} Re8 {[%emt 0:00:58]} 9. Re1 {[%emt 0:00:57]} d5 {[%emt 0:01:33]} 10. exd5 {[%emt 0:00:27]} Rxe1+ {[%emt 0:00:29]} 11. Qxe1 {[%emt 0:00:13]} Nxd5 {[%emt 0:00:25]} 12. Bd2 {[%emt 0:01:11]} Bb7 {[%emt 0:01:47]} 13. Qe4 {[%emt 0:02:07]} g6 {[%emt 0:01:29]} 14. Bh6 {[%emt 0:00:56]} Be7 {[%emt 0:01:07]} 15. Nxd5 {[%emt 0:04:36]} cxd5 {[%emt 0:00:18]} 16. Qf4 {[%emt 0:01:32]} d4 {[%emt 0:01:14]} 17. Bc4 {[%emt 0:01:07]} Bf6 {[%emt 0:02:41]} 18. Re1 {[%emt 0:00:39]} Qd6 {[%emt 0:03:15]} 19. Qxd6 {[%emt 0:07:38]} cxd6 {[%emt 0:01:04]} 20. Bf4 {[%emt 0:00:40]} d5 {[%emt 0:00:28]} 21. Bd3 {[%emt 0:00:17]} g5 {[%emt 0:00:23]} 22. Bg3 {[%emt 0:00:30]} h5 {[%emt 0:00:31]} 23. h3 {[%emt 0:00:16]} a5 {[%emt 0:00:41]} 24. Be5 {[%emt 0:00:52]} Re8 {[%emt 0:00:22]} 25. Bb5 {[%emt 0:01:43]} Rxe5 {[%emt 0:00:13]} 26. Rxe5 {[%emt 0:00:05]} Bxe5 {[%emt 0:00:08]} 27. a4 {[%emt 0:00:29]} Kf8 {[%emt 0:00:32]} 28. Bd3 {[%emt 0:00:19]} Bc8 {[%emt 0:00:46]} 29. f3 {[%emt 0:00:29]} f5 {[%emt 0:00:41]} 30. Be2 {[%emt 0:04:01]} g4 {[%emt 0:00:42]} 31. Bd3 {[%emt 0:01:40]} gxh3 {[%emt 0:00:46]} 32. gxh3 {[%emt 0:00:13]} f4 {[%emt 0:00:07]} 33. Kh2 {[%emt 0:01:47]} Kf7 {[%emt 0:00:40]} 34. Bh7 {[%emt 0:02:27]} Kf6 {[%emt 0:00:19]} 35. Kg2 {[%emt 0:02:45]} Bf5 {[%emt 0:00:50]} 36. Bxf5 {[%emt 0:00:08]} Kxf5 {[%emt 0:00:12]} 37. b3 {[%emt 0:00:32]} Ke6 {[%emt 0:01:15]} 38. Kf2 {[%emt 0:00:15]} Kd6 {[%emt 0:00:17]} 39. Ke2 {[%emt 0:00:13]} Kc5 {[%emt 0:00:23]} 40. Kd3 {[%emt 0:00:29]} Kb4 {[%emt 0:00:13]} 41. Kd2 {[%emt 0:15:07]} Ka3 {[%emt 0:15:35]} 42. Kd3 {[%emt 0:00:22]} Kb2 {[%emt 0:00:10]} 43. Kd2 {[%emt 0:00:10]} h4 {[%emt 0:00:33]} 44. Kd1 {[%emt 0:00:28]} Kc3 {[%emt 0:00:08]} 45. Kc1 {[%emt 0:00:19]} d3 {[%emt 0:00:09]} 46. b4 {[%emt 0:01:03]} axb4 {[%emt 0:00:28]} 47. a5 {[%emt 0:00:24]} Bd4 {[%emt 0:00:16]} 48. cxd3 {[%emt 0:00:20]} Kxd3 {[%emt 0:00:22]} 49. a6 {[%emt 0:00:11]} Ke3 {[%emt 0:00:22]} 50. Kc2 {[%emt 0:00:00]} Kxf3 {[%emt 0:00:10]} 51. Kd3 {[%emt 0:00:06]} Ba7 {[%emt 0:00:24]} 52. Kd2 {[%emt 0:00:01]} Kg3 {[%emt 0:00:09]} 53. Ke2 {[%emt 0:00:11]} b3 {[%emt 0:00:04]} 54. Kd3 {[%emt 0:00:06]} b2 {[%emt 0:00:09]} 55. Kc2 {[%emt 0:00:07]} f3 {[%emt 0:00:07]} 56. Kd2 {[%emt 0:00:14]} b1=Q {[%emt 0:00:08]} 57. Kc3 {[%emt 0:00:03]} Qc1+ {[%emt 0:00:11]} 58. Kd3 {[%emt 0:00:07]} Qa3+ {[%emt 0:00:11]} 59. Kd2 {[%emt 0:00:06]} Be3+ {[%emt 0:00:17]} 60. Kc2 {[%emt 0:00:09]} f2 {[%emt 0:00:22]} 61. Kd1 {[%emt 0:00:10]} f1=Q+ {[%emt 0:02:06]} 62. Kc2 {[%emt 0:00:03]} Qe2+ {[%emt 0:00:45]} 63. Kb1 {[%emt 0:00:34]} Qab2# {[%emt 0:00:09]} 0-1

[Event "GER-ch Youth-U10 2022"]
[Site "Willingen"]
[Date "2022.06.07"]
[Round "5.23"]
[White "Fels, Mattis"]
[Black "Wetzig, Karl Anton"]
[Result "1-0"]
[ECO "D00"]
[WhiteElo "1395"]
[BlackElo "884"]
[Annotator "NA RC COMBH"]
[PlyCount "57"]
[EventDate "2022.06.05"]
[EventType "swiss"]
[EventRounds "11"]
[EventCountry "GER"]
[SourceTitle "playchess.com"]
[Source "ChessBase"]
[SourceQuality "1"]
[TimeControl "40/4500+30:900+30"]

1. d4 {[%emt 0:00:04]} d5 {[%emt 0:00:07]} 2. Nc3 {[%emt 0:00:05]} Nf6 {[%emt 0:00:15]} 3. Bf4 {[%emt 0:00:06]} Bf5 {[%emt 0:00:35]} 4. f3 {[%emt 0:00:03]} g6 {[%emt 0:00:37]} 5. g4 {[%emt 0:00:43]} Be6 {[%emt 0:00:31]} 6. Qd2 {[%emt 0:02:38]} h6 {[%emt 0:01:06]} 7. O-O-O {[%emt 0:01:31]} Bg7 {[%emt 0:01:16]} 8. e3 {[%emt 0:00:59]} O-O {[%emt 0:01:11]} 9. Bd3 {[%emt 0:00:19]} Nbd7 {[%emt 0:01:53]} 10. h4 {[%emt 0:00:45]} h5 {[%emt 0:03:00]} 11. gxh5 {[%emt 0:00:30]} Nxh5 {[%emt 0:01:55]} 12. Nge2 {[%emt 0:00:33]} Nxf4 {[%emt 0:00:52]} 13. Nxf4 {[%emt 0:00:00]} Bh6 {[%emt 0:02:01]} 14. e4 {[%emt 0:01:21]} c6 {[%emt 0:01:04]} 15. Rhg1 {[%emt 0:03:46]} Qc7 {[%emt 0:01:00]} 16. Nce2 {[%emt 0:01:45]} Kh7 {[%emt 0:02:20]} 17. e5 {[%emt 0:00:46]} f6 {[%emt 0:02:37]} 18. Bxg6+ {[%emt 0:03:51]} Kh8 {[%emt 0:02:15]} 19. Kb1 {[%emt 0:00:51]} Bf7 {[%emt 0:00:51]} 20. Qd3 {[%emt 0:02:19]} fxe5 {[%emt 0:02:10]} 21. dxe5 {[%emt 0:01:56]} Nxe5 {[%emt 0:00:53]} 22. Qf5 {[%emt 0:02:56]} Bxg6 {[%emt 0:01:45]} 23. Nxg6+ {[%emt 0:00:45]} Nxg6 {[%emt 0:00:19]} 24. Qxg6 {[%emt 0:00:35]} Qd6 {[%emt 0:00:29]} 25. Qh5 {[%emt 0:00:52]} Rg8 {[%emt 0:01:37]} 26. Ng3 {[%emt 0:01:55]} Rg6 {[%emt 0:01:43]} 27. Nf5 {[%emt 0:00:43]} Qf6 {[%emt 0:02:28]} 28. Rxg6 {[%emt 0:01:28]} Qf8 {[%emt 0:01:22]} 29. Rxh6+ {[%emt 0:00:27]} 1-0

[Event "GER-ch Youth-U10 2022"]
[Site "Willingen"]
[Date "2022.06.07"]
[Round "5.24"]
[White "Khanbekyan, Aram"]
[Black "Hellriegel, Hannes"]
[Result "0-1"]
[WhiteElo "998"]
[BlackElo "1335"]
[Annotator "NA RC COMBH"]
[PlyCount "21"]
[EventDate "2022.06.05"]
[EventType "swiss"]
[EventRounds "11"]
[EventCountry "GER"]
[SourceTitle "playchess.com"]
[Source "ChessBase"]
[SourceQuality "1"]
[TimeControl "40/4500+30:900+30"]

1. e4 {[%emt 0:00:02]} e5 {[%emt 0:00:05]} 2. Nf3 {[%emt 0:00:06]} Nc6 {[%emt 0:00:06]} 3. d4 {[%emt 0:00:33]} exd4 {[%emt 0:00:12]} 4. Bc4 {[%emt 0:00:20]} Nf6 {[%emt 0:00:09]} 5. e5 {[%emt 0:00:20]} d5 {[%emt 0:00:12]} 6. Bb5 {[%emt 0:00:40]} Ne4 {[%emt 0:01:02]} 7. Nxd4 {[%emt 0:01:01]} Bd7 {[%emt 0:00:32]} 8. Bxc6 {[%emt 0:01:26]} bxc6 {[%emt 0:00:28]} 9. O-O {[%emt 0:01:19]} Be7 {[%emt 0:00:37]} 10. Be3 {[%emt 0:03:06]} O-O {[%emt 0:00:32]} 11. Nd2 {[%emt 0:00:36]} 0-1

[Event "GER-ch Youth-U10 2022"]
[Site "Willingen"]
[Date "2022.06.07"]
[Round "5.25"]
[White "Wolf, Noah"]
[Black "Classen, Marnin"]
[Result "1-0"]
[ECO "C02"]
[WhiteElo "1073"]
[BlackElo "1168"]
[Annotator "NA RC COMBH"]
[PlyCount "65"]
[EventDate "2022.06.05"]
[EventType "swiss"]
[EventRounds "11"]
[EventCountry "GER"]
[SourceTitle "playchess.com"]
[Source "ChessBase"]
[SourceQuality "1"]
[TimeControl "40/4500+30:900+30"]

1. e4 {[%emt 0:00:03]} e6 {[%emt 0:00:24]} 2. d4 {[%emt 0:00:16]} d5 {[%emt 0:00:09]} 3. e5 {[%emt 0:00:51]} c5 {[%emt 0:00:29]} 4. c3 {[%emt 0:00:40]} Nc6 {[%emt 0:00:49]} 5. Nf3 {[%emt 0:00:53]} Qb6 {[%emt 0:01:15]} 6. Be2 {[%emt 0:00:55]} cxd4 {[%emt 0:01:14]} 7. O-O {[%emt 0:00:48]} dxc3 {[%emt 0:01:44]} 8. Nxc3 {[%emt 0:00:21]} Nge7 {[%emt 0:00:42]} 9. Be3 {[%emt 0:01:15]} Qa5 {[%emt 0:00:25]} 10. Rc1 {[%emt 0:09:13]} a6 {[%emt 0:08:20]} 11. Bd3 {[%emt 0:05:45]} Qc7 {[%emt 0:01:23]} 12. Ne2 {[%emt 0:00:45]} Ng6 {[%emt 0:06:32]} 13. Ned4 {[%emt 0:02:48]} Bd7 {[%emt 0:01:47]} 14. Bxg6 {[%emt 0:00:22]} hxg6 {[%emt 0:02:46]} 15. Ng5 {[%emt 0:04:05]} Qxe5 {[%emt 0:03:54]} 16. Ndf3 {[%emt 0:00:51]} Qf6 {[%emt 0:02:37]} 17. Re1 {[%emt 0:04:42]} Be7 {[%emt 0:01:49]} 18. Rxc6 {[%emt 0:02:40]} Bxc6 {[%emt 0:08:33]} 19. Bd4 {[%emt 0:01:00]} Qf5 {[%emt 0:01:23]} 20. Re5 {[%emt 0:07:01]} Qg4 {[%emt 0:03:37]} 21. h3 {[%emt 0:01:58]} Qh5 {[%emt 0:07:17]} 22. Nxf7 {[%emt 0:02:00]} Kxf7 {[%emt 0:01:36]} 23. Rxh5 {[%emt 0:01:36]} Rxh5 {[%emt 0:00:23]} 24. Ne5+ {[%emt 0:00:29]} Ke8 {[%emt 0:01:39]} 25. Nxg6 {[%emt 0:01:39]} Rh7 {[%emt 0:01:03]} 26. Qb1 {[%emt 0:01:56]} Bd6 {[%emt 0:00:50]} 27. Ne5 {[%emt 0:01:24]} Rh8 {[%emt 0:00:39]} 28. Qg6+ {[%emt 0:00:40]} Ke7 {[%emt 0:01:03]} 29. Qxg7+ {[%emt 0:00:12]} Kd8 {[%emt 0:00:13]} 30. Qxh8+ {[%emt 0:00:00]} Bf8 {[%emt 0:00:00]} 31. Qxf8+ {[%emt 0:00:00]} Be8 {[%emt 0:00:12]} 32. Bb6+ {[%emt 0:00:00]} Kc8 {[%emt 0:00:20]} 33. Qxe8# {[%emt 0:01:11]} 1-0

[Event "GER-ch Youth-U10 2022"]
[Site "Willingen"]
[Date "2022.06.08"]
[Round "6.1"]
[White "Zimmer, Tim"]
[Black "Nezhyvenko, Mykhaylo"]
[Result "1/2-1/2"]
[ECO "B48"]
[WhiteElo "1164"]
[BlackElo "1488"]
[Annotator "NA RC COMBH"]
[PlyCount "68"]
[EventDate "2022.06.05"]
[EventType "swiss"]
[EventRounds "11"]
[EventCountry "GER"]
[SourceTitle "playchess.com"]
[Source "ChessBase"]
[SourceQuality "1"]
[TimeControl "40/4500+30:900+30"]

1. e4 {[%emt 0:00:03]} c5 {[%emt 0:00:00]} 2. Nf3 {[%emt 0:00:08]} e6 {[%emt 0:00:08]} 3. d4 {[%emt 0:00:29]} cxd4 {[%emt 0:00:01]} 4. Nxd4 {[%emt 0:00:09]} Nc6 {[%emt 0:00:02]} 5. Nc3 {[%emt 0:00:55]} Qc7 {[%emt 0:00:01]} 6. a3 {[%emt 0:01:46]} a6 {[%emt 0:00:15]} 7. Be3 {[%emt 0:01:01]} Nf6 {[%emt 0:00:03]} 8. Be2 {[%emt 0:00:17]} Be7 {[%emt 0:00:59]} 9. Qd2 {[%emt 0:00:51]} O-O {[%emt 0:00:21]} 10. f4 {[%emt 0:01:14]} d6 {[%emt 0:00:05]} 11. O-O-O {[%emt 0:07:09]} b5 {[%emt 0:00:14]} 12. Nxc6 {[%emt 0:00:20]} Qxc6 {[%emt 0:00:12]} 13. Bf3 {[%emt 0:02:52]} e5 {[%emt 0:02:31]} 14. f5 {[%emt 0:01:06]} b4 {[%emt 0:05:30]} 15. axb4 {[%emt 0:02:09]} Qc4 {[%emt 0:00:01]} 16. Nd5 {[%emt 0:01:50]} Nxd5 {[%emt 0:01:16]} 17. Qxd5 {[%emt 0:00:37]} Qxd5 {[%emt 0:00:00]} 18. Rxd5 {[%emt 0:00:16]} Bb7 {[%emt 0:00:04]} 19. Rd3 {[%emt 0:01:41]} Rfc8 {[%emt 0:00:01]} 20. Rhd1 {[%emt 0:01:21]} Rc4 {[%emt 0:00:08]} 21. Rc3 {[%emt 0:03:24]} Rac8 {[%emt 0:00:52]} 22. Rdd3 {[%emt 0:02:43]} Bf8 {[%emt 0:10:20]} 23. Bd2 {[%emt 0:06:40]} f6 {[%emt 0:06:55]} 24. b3 {[%emt 0:05:38]} Rxc3 {[%emt 0:00:19]} 25. Rxc3 {[%emt 0:00:11]} Rxc3 {[%emt 0:00:08]} 26. Bxc3 {[%emt 0:00:03]} Kf7 {[%emt 0:00:12]} 27. Kd2 {[%emt 0:01:20]} g6 {[%emt 0:00:24]} 28. g4 {[%emt 0:00:39]} Bh6+ {[%emt 0:03:53]} 29. Kd3 {[%emt 0:01:06]} Bf4 {[%emt 0:00:15]} 30. h3 {[%emt 0:00:18]} Bc6 {[%emt 0:00:48]} 31. Bd2 {[%emt 0:03:49]} Ke7 {[%emt 0:01:11]} 32. Bxf4 {[%emt 0:03:29]} exf4 {[%emt 0:00:01]} 33. Kd4 {[%emt 0:00:21]} Bb5 {[%emt 0:01:14]} 34. c4 {[%emt 0:01:19]} Bc6 {[%emt 0:00:04]} 1/2-1/2

[Event "GER-ch Youth-U10 2022"]
[Site "Willingen"]
[Date "2022.06.08"]
[Round "6.2"]
[White "Kateryniuk, Ivan"]
[Black "Allen, Phillipp"]
[Result "1-0"]
[ECO "B13"]
[WhiteElo "1187"]
[BlackElo "1467"]
[Annotator "NA RC COMBH"]
[PlyCount "27"]
[EventDate "2022.06.05"]
[EventType "swiss"]
[EventRounds "11"]
[EventCountry "GER"]
[SourceTitle "playchess.com"]
[Source "ChessBase"]
[SourceQuality "1"]
[TimeControl "40/4500+30:900+30"]

1. e4 {[%emt 0:00:12]} c6 {[%emt 0:00:03]} 2. d4 {[%emt 0:00:08]} d5 {[%emt 0:00:05]} 3. exd5 {[%emt 0:00:07]} cxd5 {[%emt 0:00:10]} 4. Bd3 {[%emt 0:00:06]} Nc6 {[%emt 0:00:19]} 5. c3 {[%emt 0:00:08]} Nf6 {[%emt 0:00:17]} 6. Bf4 {[%emt 0:00:37]} e6 {[%emt 0:01:03]} 7. Nf3 {[%emt 0:00:43]} Bd6 {[%emt 0:00:29]} 8. Bg3 {[%emt 0:00:02]} Qc7 {[%emt 0:01:35]} 9. Nbd2 {[%emt 0:01:32]} Bd7 {[%emt 0:02:18]} 10. Qc2 {[%emt 0:01:14]} Nb4 11. cxb4 {[%emt 0:00:34]} Qxc2 {[%emt 0:02:23]} 12. Bxc2 {[%emt 0:00:06]} Bxb4 {[%emt 0:00:06]} 13. O-O {[%emt 0:00:29]} Rc8 {[%emt 0:00:11]} 14. Bd3 {[%emt 0:00:44]} 1-0

[Event "GER-ch Youth-U10 2022"]
[Site "Willingen"]
[Date "2022.06.08"]
[Round "6.3"]
[White "Zhang, Yibo"]
[Black "Belin, Anton"]
[Result "1-0"]
[ECO "B01"]
[WhiteElo "1436"]
[BlackElo "1213"]
[Annotator "NA RC COMBH"]
[PlyCount "69"]
[EventDate "2022.06.05"]
[EventType "swiss"]
[EventRounds "11"]
[EventCountry "GER"]
[SourceTitle "playchess.com"]
[Source "ChessBase"]
[SourceQuality "1"]
[TimeControl "40/4500+30:900+30"]

1. e4 {[%emt 0:00:04]} d5 {[%emt 0:00:07]} 2. exd5 {[%emt 0:00:06]} Nf6 {[%emt 0:00:03]} 3. d4 {[%emt 0:00:05]} Nxd5 {[%emt 0:00:07]} 4. c4 {[%emt 0:00:09]} Nb6 {[%emt 0:00:04]} 5. Nf3 {[%emt 0:00:07]} Bg4 {[%emt 0:00:07]} 6. c5 {[%emt 0:00:17]} Nd5 {[%emt 0:01:00]} 7. Qb3 {[%emt 0:00:31]} Nc6 {[%emt 0:01:05]} 8. Qxb7 {[%emt 0:00:25]} Ndb4 {[%emt 0:00:23]} 9. Bb5 {[%emt 0:00:08]} Rb8 {[%emt 0:03:31]} 10. Bxc6+ {[%emt 0:00:32]} Bd7 {[%emt 0:00:47]} 11. Bxd7+ {[%emt 0:00:13]} Kxd7 {[%emt 0:00:06]} 12. Qe4 {[%emt 0:01:05]} e6 {[%emt 0:02:02]} 13. O-O {[%emt 0:03:06]} f5 {[%emt 0:01:16]} 14. Qe2 {[%emt 0:01:12]} h6 {[%emt 0:00:27]} 15. Ne5+ {[%emt 0:00:33]} Kc8 {[%emt 0:00:30]} 16. Nf7 {[%emt 0:00:55]} Qf6 {[%emt 0:00:23]} 17. Nxh8 {[%emt 0:00:26]} g5 {[%emt 0:00:12]} 18. a3 {[%emt 0:00:42]} Nd5 {[%emt 0:00:07]} 19. Qa6+ {[%emt 0:01:28]} Rb7 {[%emt 0:00:47]} 20. c6 {[%emt 0:00:14]} Qxh8 {[%emt 0:00:11]} 21. Qxb7+ {[%emt 0:01:04]} Kd8 {[%emt 0:00:07]} 22. Nc3 {[%emt 0:00:39]} Nxc3 {[%emt 0:00:34]} 23. Qb8+ {[%emt 0:00:13]} Ke7 {[%emt 0:00:07]} 24. Qxc7+ {[%emt 0:00:08]} Kf6 {[%emt 0:00:06]} 25. Qe5+ {[%emt 0:00:06]} Kf7 {[%emt 0:00:27]} 26. Qxh8 {[%emt 0:00:12]} Ne2+ {[%emt 0:00:06]} 27. Kh1 {[%emt 0:00:03]} Bg7 {[%emt 0:00:06]} 28. Qh7 {[%emt 0:00:14]} a5 {[%emt 0:00:07]} 29. c7 {[%emt 0:00:06]} Nxd4 {[%emt 0:00:05]} 30. c8=Q {[%emt 0:00:08]} a4 {[%emt 0:00:12]} 31. Qcg8+ {[%emt 0:00:23]} Ke7 {[%emt 0:00:06]} 32. Qhxg7+ {[%emt 0:00:23]} Kd6 {[%emt 0:00:11]} 33. Qxd4+ {[%emt 0:00:06]} Kc6 {[%emt 0:00:09]} 34. Qc8+ {[%emt 0:00:13]} Kb5 {[%emt 0:00:05]} 35. Qdc5# {[%emt 0:00:09]} 1-0

[Event "GER-ch Youth-U10 2022"]
[Site "Willingen"]
[Date "2022.06.08"]
[Round "6.4"]
[White "Rohatgi, Kushagra"]
[Black "Rau, Eduard"]
[Result "0-1"]
[ECO "C54"]
[WhiteElo "1222"]
[BlackElo "1406"]
[Annotator "NA RC COMBH"]
[PlyCount "58"]
[EventDate "2022.06.05"]
[EventType "swiss"]
[EventRounds "11"]
[EventCountry "GER"]
[SourceTitle "playchess.com"]
[Source "ChessBase"]
[SourceQuality "1"]
[TimeControl "40/4500+30:900+30"]

1. e4 {[%emt 0:00:04]} e5 {[%emt 0:00:08]} 2. Nf3 {[%emt 0:00:07]} Nc6 {[%emt 0:00:02]} 3. Bc4 {[%emt 0:00:11]} Nf6 {[%emt 0:00:02]} 4. d3 {[%emt 0:00:14]} Bc5 {[%emt 0:00:03]} 5. c3 {[%emt 0:00:14]} a5 {[%emt 0:00:16]} 6. a4 {[%emt 0:01:33]} d6 {[%emt 0:00:36]} 7. O-O {[%emt 0:00:26]} O-O {[%emt 0:01:39]} 8. Re1 {[%emt 0:01:32]} Be6 {[%emt 0:00:42]} 9. Bxe6 {[%emt 0:02:12]} fxe6 {[%emt 0:00:20]} 10. Rf1 {[%emt 0:05:04]} h6 {[%emt 0:01:20]} 11. d4 {[%emt 0:00:57]} exd4 {[%emt 0:00:32]} 12. cxd4 {[%emt 0:02:20]} Bb6 {[%emt 0:00:15]} 13. Nc3 {[%emt 0:02:02]} Ng4 {[%emt 0:02:54]} 14. Qb3 {[%emt 0:06:27]} Qf6 {[%emt 0:00:41]} 15. h3 {[%emt 0:02:17]} Nxf2 {[%emt 0:00:28]} 16. Rxf2 {[%emt 0:03:39]} Nxd4 {[%emt 0:00:34]} 17. Qd1 {[%emt 0:18:55]} Nxf3+ {[%emt 0:00:11]} 18. Qxf3 {[%emt 0:05:07]} Bxf2+ {[%emt 0:00:16]} 19. Kh1 {[%emt 0:00:56]} Qxf3 {[%emt 0:00:45]} 20. gxf3 {[%emt 0:00:17]} Rxf3 {[%emt 0:00:02]} 21. Kg2 {[%emt 0:02:49]} Raf8 {[%emt 0:01:07]} 22. Nb5 {[%emt 0:04:57]} Rg3+ {[%emt 0:00:32]} 23. Kh2 {[%emt 0:00:50]} Rg6 {[%emt 0:01:06]} 24. Bd2 {[%emt 0:02:22]} Bg3+ {[%emt 0:00:40]} 25. Kh1 {[%emt 0:01:21]} Rf2 {[%emt 0:00:03]} 26. Be3 {[%emt 0:02:25]} Rh2+ {[%emt 0:00:43]} 27. Kg1 {[%emt 0:00:14]} Bf4+ {[%emt 0:00:04]} 28. Kf1 {[%emt 0:00:56]} Bxe3 {[%emt 0:00:09]} 29. Ke1 {[%emt 0:01:44]} Rg1# {[%emt 0:01:03]} 0-1

[Event "GER-ch Youth-U10 2022"]
[Site "Willingen"]
[Date "2022.06.08"]
[Round "6.5"]
[White "Vartanian, Roman"]
[Black "Stehning, Toni"]
[Result "1/2-1/2"]
[ECO "D40"]
[WhiteElo "1511"]
[BlackElo "1097"]
[Annotator "NA RC COMBH"]
[PlyCount "57"]
[EventDate "2022.06.05"]
[EventType "swiss"]
[EventRounds "11"]
[EventCountry "GER"]
[SourceTitle "playchess.com"]
[Source "ChessBase"]
[SourceQuality "1"]
[TimeControl "40/4500+30:900+30"]

1. Nf3 {[%emt 0:00:04]} d5 {[%emt 0:00:18]} 2. c4 {[%emt 0:00:05]} e6 {[%emt 0:00:12]} 3. d4 {[%emt 0:00:13]} c5 {[%emt 0:00:18]} 4. e3 {[%emt 0:00:19]} Nc6 {[%emt 0:00:26]} 5. Nc3 {[%emt 0:00:49]} Nf6 {[%emt 0:00:28]} 6. Be2 {[%emt 0:01:27]} Be7 {[%emt 0:02:22]} 7. O-O {[%emt 0:00:11]} O-O {[%emt 0:00:08]} 8. a3 {[%emt 0:01:31]} b6 {[%emt 0:06:31]} 9. Qc2 {[%emt 0:01:59]} cxd4 {[%emt 0:04:26]} 10. cxd5 {[%emt 0:04:19]} Nxd5 {[%emt 0:03:10]} 11. Nxd5 {[%emt 0:02:31]} Qxd5 {[%emt 0:01:09]} 12. Bd3 {[%emt 0:01:11]} Bb7 {[%emt 0:04:46]} 13. Bxh7+ {[%emt 0:01:08]} Kh8 {[%emt 0:00:27]} 14. Be4 {[%emt 0:03:23]} Qd7 {[%emt 0:02:13]} 15. Bxc6 {[%emt 0:01:14]} Qxc6 {[%emt 0:00:13]} 16. Qxc6 {[%emt 0:00:24]} Bxc6 {[%emt 0:00:05]} 17. Nxd4 {[%emt 0:00:50]} Bb7 {[%emt 0:03:02]} 18. Bd2 {[%emt 0:03:07]} Rfd8 {[%emt 0:03:09]} 19. Bc3 {[%emt 0:00:34]} Rd5 {[%emt 0:11:59]} 20. Rfd1 {[%emt 0:07:42]} Rad8 {[%emt 0:01:30]} 21. Rd2 {[%emt 0:04:20]} e5 {[%emt 0:03:42]} 22. Nb3 {[%emt 0:01:47]} Rxd2 {[%emt 0:00:30]} 23. Nxd2 {[%emt 0:00:54]} f6 {[%emt 0:00:34]} 24. Nf1 {[%emt 0:01:24]} g6 {[%emt 0:03:40]} 25. Ng3 {[%emt 0:00:53]} Kg7 {[%emt 0:01:41]} 26. a4 {[%emt 0:02:07]} a5 {[%emt 0:02:33]} 27. Ne2 {[%emt 0:03:25]} Ba6 {[%emt 0:03:15]} 28. Re1 {[%emt 0:01:51]} Kf7 {[%emt 0:02:49]} 29. Ng3 {[%emt 0:03:54]} 1/2-1/2

[Event "GER-ch Youth-U10 2022"]
[Site "Willingen"]
[Date "2022.06.08"]
[Round "6.6"]
[White "Campora, Daniel H."]
[Black "Teng, David"]
[Result "1-0"]
[ECO "D58"]
[WhiteElo "2397"]
[BlackElo "1423"]
[Annotator "TA"]
[PlyCount "67"]
[EventDate "2022.06.05"]
[EventType "swiss"]
[EventRounds "11"]
[EventCountry "GER"]
[SourceTitle "playchess.com"]
[Source "ChessBase"]
[SourceQuality "1"]
[TimeControl "40/4500+30:900+30"]

{[%evp 20,67,17,4,43,37,75,35,32,16,112,69,109,111,127,61,73,0,158,154,170,167,166,166,466,487,562,549,786,833,939,943,890,508,1393,1369,1906,1816,1755,1738,1719,1627,1383,944,1919,1887,29971,29962,5406,1614]} 1. d4 {[%emt 0:00:02]} d5 {[%emt 0:00:09]} 2. c4 {[%emt 0:00:18]} e6 {[%emt 0:00:06]} 3. Nc3 {[%emt 0:00:21]} Nf6 {[%emt 0:00:18]} 4. Bg5 {[%emt 0:00:42]} Be7 {[%emt 0:00:31]} 5. Nf3 {[%emt 0:00:29]} O-O {[%emt 0:00:31]} 6. e3 {[%emt 0:00:30]} h6 {[%emt 0:00:39]} 7. Bh4 {[%emt 0:00:25]} b6 {[%emt 0:00:29]} 8. Bd3 {[%emt 0:00:58]} dxc4 {[%emt 0:00:24]} 9. Bxc4 {[%emt 0:00:15]} Bb7 {[%emt 0:01:42]} 10. O-O {[%emt 0:00:49]} Nbd7 {[%emt 0:04:08]} 11. Qe2 {[%emt 0:01:01]} c5 {[%emt 0:02:19] D58: Queen's Gambit Declined: Tartakower Defence.} 12. Rfd1 {[%emt 0:00:53]} cxd4 {[%emt 0:04:44]} 13. Rxd4 {[%emt 0:01:44] [#] And now Rad1 would win.} Qc7 $146 {[%emt 0:01:50] White is slightly better.} ({Predecessor:} 13... Qc8 14. Rad1 Bc5 15. R4d2 a6 16. e4 Bc6 17. h3 Ra7 18. e5 Nh5 19. Nd4 Nf4 {½-½ (56) Dixit,K (1885)-Shepley,J (2020) England 2012}) 14. Bg3 {[%emt 0:02:00]} e5 {[%emt 0:07:56]} (14... Qc8 $11) 15. Rc1 {[%emt 0:03:00]} Qc5 {[%emt 0:03:21]} 16. Rdd1 {[%emt 0:02:58] White is more active.} Rac8 {[%emt 0:03:51]} 17. Bb3 {[%emt 0:01:13]} ({Better is} 17. Bb5 $16 e4 18. Nd4 (18. Bxd7 exf3 19. gxf3 Nxd7 $14)) 17... Qa5 $14 {[%emt 0:03:08]} 18. Bc4 {[%emt 0:02:27] Against Ba6} (18. Nh4 $16) 18... e4 $2 {[%emt 0:06:17] Black is on the road to losing.} (18... Qc5 $1 $11 19. Bb5 e4) 19. Nd4 $16 {[%emt 0:04:40][%cal Bf3d4,Bd4f5,Bf5d6][%mdl 32] Bb5 is the strong threat.} Nc5 {[%emt 0:01:43]} 20. Nf5 {[%emt 0:01:14]} Rfe8 {[%emt 0:05:05]} 21. Bd6 $36 {[%emt 0:00:34][%mdl 2048] White is really pushing.} Bd8 $2 {[%emt 0:02:48]} (21... Bf8) 22. Bxc5 $18 {[%emt 0:00:26]} Qxc5 {[%emt 0:02:40]} 23. Nd6 {[%emt 0:00:09] Pair of Knights!} Bc7 {[%emt 0:05:04]} 24. Bxf7+ {[%emt 0:02:09]} Kf8 {[%emt 0:03:06]} 25. Nxe8 {[%emt 0:04:11]} Nxe8 {[%emt 0:02:34]} 26. Bxe8 {[%emt 0:00:13]} Rxe8 {[%emt 0:00:12] [#]} (26... Qe5 $142 27. g3 Qxe8) 27. Nd5 $1 {[%emt 0:00:39][%cal Bc3d5,Bd5f4,Bf4g2][%mdl 544]} Bxh2+ {[%emt 0:01:20]} (27... Qxc1 28. Rxc1) 28. Kxh2 {[%emt 0:01:35]} Qd6+ {[%emt 0:00:45]} 29. Nf4 {[%emt 0:00:13]} Qf6 {[%emt 0:01:44]} 30. g3 {[%emt 0:02:26]} g5 {[%emt 0:04:27]} 31. Ng2 {[%emt 0:01:20]} Qf5 {[%emt 0:02:35]} 32. Qh5 {[%emt 0:02:35] Rc7 would kill now.} Qe6 {[%emt 0:00:51]} 33. Rc7 {[%emt 0:01:37]} Bc8 {[%emt 0:01:59]} 34. Rh7 {[%emt 0:00:33] Weighted Error Value: White=0.44/Black=1.06} 1-0